[Event "*** Titled Tuesday Blitz"]
[Site "Chess.com"]
[Date "2020.12.29"]
[Round "9"]
[White "TheBigBoss04"]
[Black "rpragchess"]
[Result "0-1"]
[WhiteElo "2747"]
[BlackElo "2852"]
[TimeControl "180+1"]
[EndTime "11:44:40 PST"]
[Termination "rpragchess won on time"]

1. d4 {[%clk 0:02:58.1]} 1... Nf6 {[%clk 0:02:57.2]} 2. c4 {[%clk 0:02:56]} 2...
g6 {[%clk 0:02:54.2]} 3. Nc3 {[%clk 0:02:55.3]} 3... Bg7 {[%clk 0:02:54.5]} 4.
e4 {[%clk 0:02:55.6]} 4... d6 {[%clk 0:02:54]} 5. h3 {[%clk 0:02:56]} 5... O-O
{[%clk 0:02:52.3]} 6. Nf3 {[%clk 0:02:56.6]} 6... c5 {[%clk 0:02:46.1]} 7. Be3
{[%clk 0:02:56.4]} 7... Qa5 {[%clk 0:02:42.1]} 8. Qd2 {[%clk 0:02:52]} 8... cxd4
{[%clk 0:02:19.1]} 9. Nxd4 {[%clk 0:02:52.9]} 9... b6 {[%clk 0:02:19.7]} 10. g3
{[%clk 0:02:31]} 10... Bb7 {[%clk 0:01:57.2]} 11. Bg2 {[%clk 0:02:30.9]} 11...
Nbd7 {[%clk 0:01:37.2]} 12. O-O {[%clk 0:02:26.8]} 12... Rfc8 {[%clk 0:01:36.5]}
13. b3 {[%clk 0:02:23.3]} 13... Nc5 {[%clk 0:01:06.9]} 14. f3 {[%clk 0:02:04.8]}
14... Ne6 {[%clk 0:00:53.6]} 15. Nde2 {[%clk 0:01:41]} 15... a6 {[%clk
0:00:46.3]} 16. a3 {[%clk 0:01:28]} 16... b5 {[%clk 0:00:34.6]} 17. b4 {[%clk
0:01:26.4]} 17... Qc7 {[%clk 0:00:34.8]} 18. cxb5 {[%clk 0:01:21.4]} 18... axb5
{[%clk 0:00:35.1]} 19. Nxb5 {[%clk 0:00:48.8]} 19... Qc4 {[%clk 0:00:33.4]} 20.
a4 {[%clk 0:00:44.1]} 20... Nd7 {[%clk 0:00:20]} 21. Rac1 {[%clk 0:00:41.5]}
21... Qb3 {[%clk 0:00:19.1]} 22. a5 {[%clk 0:00:35.3]} 22... Ba6 {[%clk
0:00:17.9]} 23. Nbd4 {[%clk 0:00:18.2]} 23... Nxd4 {[%clk 0:00:17.4]} 24. Nxd4
{[%clk 0:00:12.3]} 24... Bxd4 {[%clk 0:00:17.3]} 25. Qxd4 {[%clk 0:00:11]} 25...
Bxf1 {[%clk 0:00:15.6]} 26. Rxf1 {[%clk 0:00:09.5]} 26... Qc3 {[%clk 0:00:07.9]}
27. Rb1 {[%clk 0:00:04.2]} 27... Rab8 {[%clk 0:00:03.4]} 28. Qxc3 {[%clk
0:00:03.5]} 28... Rxc3 {[%clk 0:00:04.3]} 29. Bd2 {[%clk 0:00:02.3]} 29... Rc2
{[%clk 0:00:04.4]} 30. Be1 {[%clk 0:00:02.9]} 30... Ne5 {[%clk 0:00:03.9]} 31.
a6 {[%clk 0:00:02.6]} 31... Ra2 {[%clk 0:00:03.9]} 32. b5 {[%clk 0:00:02.7]}
32... Rxa6 {[%clk 0:00:03.2]} 0-1

[Event "*** Titled Tuesday Blitz"]
[Site "Chess.com"]
[Date "2020.12.29"]
[Round "9"]
[White "rududuyk"]
[Black "viktorko131"]
[Result "0-1"]
[WhiteElo "2230"]
[BlackElo "2081"]
[TimeControl "180+1"]
[EndTime "11:44:40 PST"]
[Termination "viktorko131 won by resignation"]

1. e4 {[%clk 0:03:00.9]} 1... c5 {[%clk 0:02:57.8]} 2. Nc3 {[%clk 0:03:01.1]}
2... Nc6 {[%clk 0:02:56.5]} 3. f4 {[%clk 0:03:01.3]} 3... e6 {[%clk 0:02:48.9]}
4. Nf3 {[%clk 0:03:01.2]} 4... d5 {[%clk 0:02:48]} 5. Bb5 {[%clk 0:02:57.5]}
5... Ne7 {[%clk 0:02:38.2]} 6. exd5 {[%clk 0:02:44.2]} 6... exd5 {[%clk
0:02:36]} 7. O-O {[%clk 0:02:42.2]} 7... a6 {[%clk 0:02:24.3]} 8. Bxc6+ {[%clk
0:02:41.5]} 8... Nxc6 {[%clk 0:02:24.5]} 9. Re1+ {[%clk 0:02:41]} 9... Be7
{[%clk 0:02:24.8]} 10. d4 {[%clk 0:02:38]} 10... O-O {[%clk 0:01:56.6]} 11. Kh1
{[%clk 0:02:32.6]} 11... cxd4 {[%clk 0:01:36.2]} 12. Nxd4 {[%clk 0:02:29.8]}
12... Nxd4 {[%clk 0:00:57.9]} 13. Qxd4 {[%clk 0:02:28.9]} 13... Bf6 {[%clk
0:00:58.8]} 14. Qd3 {[%clk 0:01:54.4]} 14... d4 {[%clk 0:00:31.1]} 15. Ne2
{[%clk 0:01:31.1]} 15... Re8 {[%clk 0:00:26.9]} 16. b3 {[%clk 0:01:22.3]} 16...
Bg4 {[%clk 0:00:21]} 17. Bb2 {[%clk 0:01:06.9]} 17... Qe7 {[%clk 0:00:19.3]} 18.
Ng1 {[%clk 0:00:59]} 18... Qxe1 {[%clk 0:00:15.3]} 19. Rxe1 {[%clk 0:00:59.9]}
19... Rxe1 {[%clk 0:00:15]} 20. h3 {[%clk 0:00:58.5]} 20... Be6 {[%clk
0:00:09.5]} 21. Kh2 {[%clk 0:00:54.5]} 21... Rd8 {[%clk 0:00:06]} 22. Nf3 {[%clk
0:00:52.5]} 22... Re3 {[%clk 0:00:05.9]} 23. Qd2 {[%clk 0:00:47.1]} 23... Re4
{[%clk 0:00:03.1]} 24. Ng5 {[%clk 0:00:24.8]} 24... Bxg5 {[%clk 0:00:02.8]} 25.
fxg5 {[%clk 0:00:25.7]} 25... Bf5 {[%clk 0:00:02.1]} 26. Qf2 {[%clk 0:00:21.9]}
26... Bg6 {[%clk 0:00:02]} 27. h4 {[%clk 0:00:15.5]} 27... h5 {[%clk 0:00:01.9]}
28. Qg3 {[%clk 0:00:13.6]} 28... Kh7 {[%clk 0:00:01.6]} 29. Kh3 {[%clk 0:00:13]}
29... Re3 {[%clk 0:00:01]} 30. Bc1 {[%clk 0:00:12.2]} 30... Rxg3+ {[%clk
0:00:01.1]} 31. Kxg3 {[%clk 0:00:13.1]} 31... Rc8 {[%clk 0:00:01.7]} 32. Kf3
{[%clk 0:00:13.5]} 32... Rxc2 {[%clk 0:00:02.6]} 33. Ba3 {[%clk 0:00:13]} 33...
Rxa2 {[%clk 0:00:02.9]} 34. Bc5 {[%clk 0:00:13.5]} 34... Rb2 {[%clk 0:00:03.2]}
35. Bxd4 {[%clk 0:00:13.7]} 35... Rxb3+ {[%clk 0:00:03.8]} 36. Kf2 {[%clk
0:00:14.3]} 36... a5 {[%clk 0:00:04.3]} 37. Ke2 {[%clk 0:00:14.3]} 37... a4
{[%clk 0:00:05.2]} 38. Kd2 {[%clk 0:00:14.5]} 38... a3 {[%clk 0:00:05.7]} 39.
Bxg7 {[%clk 0:00:13.6]} 39... Kxg7 {[%clk 0:00:05.5]} 40. Kc1 {[%clk 0:00:12.5]}
40... a2 {[%clk 0:00:05.8]} 41. Kd2 {[%clk 0:00:12.5]} 41... a1=Q {[%clk
0:00:06.2]} 0-1

[Event "*** Titled Tuesday Blitz"]
[Site "Chess.com"]
[Date "2020.12.29"]
[Round "9"]
[White "francyIM"]
[Black "maxip32"]
[Result "1/2-1/2"]
[WhiteElo "2679"]
[BlackElo "2510"]
[TimeControl "180+1"]
[EndTime "11:44:41 PST"]
[Termination "Game drawn by repetition"]

1. f4 {[%clk 0:03:00.9]} 1... d5 {[%clk 0:02:59.1]} 2. Nf3 {[%clk 0:03:01.2]}
2... Nf6 {[%clk 0:02:59.4]} 3. g3 {[%clk 0:03:01]} 3... e6 {[%clk 0:02:54]} 4.
Bg2 {[%clk 0:03:00.8]} 4... c5 {[%clk 0:02:54.2]} 5. d3 {[%clk 0:03:00.7]} 5...
Nc6 {[%clk 0:02:53.9]} 6. c3 {[%clk 0:03:01]} 6... Be7 {[%clk 0:02:54]} 7. O-O
{[%clk 0:03:01.8]} 7... O-O {[%clk 0:02:54.5]} 8. Qe1 {[%clk 0:03:00.2]} 8...
Rb8 {[%clk 0:02:31.6]} 9. e4 {[%clk 0:02:57.6]} 9... dxe4 {[%clk 0:02:32.5]} 10.
dxe4 {[%clk 0:02:56.4]} 10... b5 {[%clk 0:02:33.1]} 11. e5 {[%clk 0:02:48.2]}
11... Nd7 {[%clk 0:02:29.2]} 12. Be3 {[%clk 0:02:46.2]} 12... c4 {[%clk
0:02:26]} 13. Qf2 {[%clk 0:02:43.8]} 13... Qc7 {[%clk 0:02:24.8]} 14. Nbd2
{[%clk 0:02:42.1]} 14... a5 {[%clk 0:02:20.3]} 15. a4 {[%clk 0:02:40.9]} 15...
Ba6 {[%clk 0:02:12.8]} 16. axb5 {[%clk 0:02:39.4]} 16... Bxb5 {[%clk 0:02:13.7]}
17. Rfb1 {[%clk 0:02:36.3]} 17... a4 {[%clk 0:02:10.2]} 18. Bf1 {[%clk
0:02:35.9]} 18... Na5 {[%clk 0:02:09]} 19. Nd4 {[%clk 0:02:33.6]} 19... Qb7
{[%clk 0:01:57.7]} 20. b4 {[%clk 0:02:18.4]} 20... Nb3 {[%clk 0:01:48.1]} 21.
N2xb3 {[%clk 0:02:01.2]} 21... axb3 {[%clk 0:01:40.8]} 22. Ra5 {[%clk 0:02:00]}
22... Qe4 {[%clk 0:01:22]} 23. Rd1 {[%clk 0:01:38.9]} 23... Bc6 {[%clk 0:01:12]}
24. Nxc6 {[%clk 0:01:36.4]} 24... Qxc6 {[%clk 0:01:11.7]} 25. Bg2 {[%clk
0:00:52.9]} 25... Qc8 {[%clk 0:01:09.4]} 26. Ra7 {[%clk 0:00:52.1]} 26... Rd8
{[%clk 0:01:08.7]} 27. Qe2 {[%clk 0:00:20.3]} 27... Bf8 {[%clk 0:01:04]} 28. Rd4
{[%clk 0:00:10.7]} 28... Nb6 {[%clk 0:01:01.6]} 29. Be4 {[%clk 0:00:10.7]} 29...
Rxd4 {[%clk 0:01:00.2]} 30. Bxd4 {[%clk 0:00:10.5]} 30... Nd5 {[%clk 0:00:51.2]}
31. h4 {[%clk 0:00:09.5]} 31... Nxb4 {[%clk 0:00:48.8]} 32. cxb4 {[%clk
0:00:08.7]} 32... c3 {[%clk 0:00:49.1]} 33. Bxh7+ {[%clk 0:00:08]} 33... Kxh7
{[%clk 0:00:45.3]} 34. Qh5+ {[%clk 0:00:08.6]} 34... Kg8 {[%clk 0:00:43.8]} 35.
Qxf7+ {[%clk 0:00:09.5]} 35... Kh8 {[%clk 0:00:41]} 36. Qh5+ {[%clk 0:00:10.4]}
36... Kg8 {[%clk 0:00:41.2]} 37. Qf7+ {[%clk 0:00:08.5]} 37... Kh8 {[%clk
0:00:41.2]} 38. f5 {[%clk 0:00:09.3]} 38... c2 {[%clk 0:00:18.1]} 39. Qh5+
{[%clk 0:00:08.7]} 39... Kg8 {[%clk 0:00:18.3]} 40. Qf7+ {[%clk 0:00:08.9]}
40... Kh8 {[%clk 0:00:18.7]} 41. Qh5+ {[%clk 0:00:09.5]} 41... Kg8 {[%clk
0:00:19.2]} 42. Qf7+ {[%clk 0:00:09.4]} 42... Kh8 {[%clk 0:00:19.5]} 1/2-1/2

[Event "*** Titled Tuesday Blitz"]
[Site "Chess.com"]
[Date "2020.12.29"]
[Round "9"]
[White "JonahWillow"]
[Black "Vaathi_Coming"]
[Result "1-0"]
[WhiteElo "2727"]
[BlackElo "2824"]
[TimeControl "180+1"]
[EndTime "11:44:42 PST"]
[Termination "JonahWillow won on time"]

1. e4 {[%clk 0:03:00.9]} 1... c5 {[%clk 0:02:59.6]} 2. Nf3 {[%clk 0:03:01.1]}
2... d6 {[%clk 0:02:59.9]} 3. d4 {[%clk 0:03:01.8]} 3... cxd4 {[%clk 0:03:00.8]}
4. Qxd4 {[%clk 0:03:02.7]} 4... Nf6 {[%clk 0:02:58.4]} 5. Nc3 {[%clk 0:03:02.5]}
5... g6 {[%clk 0:02:57.1]} 6. e5 {[%clk 0:02:57]} 6... Nc6 {[%clk 0:02:40.9]} 7.
Bb5 {[%clk 0:02:55.3]} 7... dxe5 {[%clk 0:02:35.4]} 8. Qxd8+ {[%clk 0:02:56.2]}
8... Kxd8 {[%clk 0:02:36.3]} 9. Bxc6 {[%clk 0:02:56.5]} 9... bxc6 {[%clk
0:02:37.2]} 10. Nxe5 {[%clk 0:02:56.9]} 10... Ke8 {[%clk 0:02:37.7]} 11. O-O
{[%clk 0:02:55.7]} 11... Bg7 {[%clk 0:02:32]} 12. Nxc6 {[%clk 0:02:53.5]} 12...
Bd7 {[%clk 0:02:16]} 13. Ne5 {[%clk 0:02:49.5]} 13... Rb8 {[%clk 0:02:09.9]} 14.
Re1 {[%clk 0:02:44.1]} 14... e6 {[%clk 0:02:06.3]} 15. Rb1 {[%clk 0:02:39.9]}
15... Ke7 {[%clk 0:01:55.3]} 16. Bf4 {[%clk 0:02:34.5]} 16... Rb4 {[%clk
0:01:51.8]} 17. Bg5 {[%clk 0:02:26.9]} 17... Rhb8 {[%clk 0:01:46.8]} 18. Ne4
{[%clk 0:01:37.1]} 18... Ba4 {[%clk 0:01:11.5]} 19. Ng4 {[%clk 0:01:14.8]} 19...
Bxc2 {[%clk 0:01:10.7]} 20. Nexf6 {[%clk 0:01:12]} 20... Bxb1 {[%clk 0:01:07.5]}
21. Nd5+ {[%clk 0:01:07.4]} 21... Kd6 {[%clk 0:00:48.1]} 22. Nxb4 {[%clk
0:00:49.6]} 22... Rxb4 {[%clk 0:00:49]} 23. Rxb1 {[%clk 0:00:34]} 23... Rxg4
{[%clk 0:00:49]} 24. Be3 {[%clk 0:00:33.7]} 24... Ra4 {[%clk 0:00:44.8]} 25. a3
{[%clk 0:00:26.7]} 25... Rc4 {[%clk 0:00:28.9]} 26. Kf1 {[%clk 0:00:26.9]} 26...
a6 {[%clk 0:00:20.6]} 27. b3 {[%clk 0:00:23]} 27... Rc2 {[%clk 0:00:18.4]} 28.
b4 {[%clk 0:00:21.9]} 28... Ra2 {[%clk 0:00:15.9]} 29. b5 {[%clk 0:00:17.7]}
29... axb5 {[%clk 0:00:14.1]} 30. Rxb5 {[%clk 0:00:18.6]} 30... Kc6 {[%clk
0:00:05.7]} 31. Rb6+ {[%clk 0:00:16.4]} 31... Kd7 {[%clk 0:00:04.7]} 32. Rb7+
{[%clk 0:00:16.1]} 32... Ke8 {[%clk 0:00:04.7]} 33. Ra7 {[%clk 0:00:15.9]} 33...
Bc3 {[%clk 0:00:03.3]} 34. a4 {[%clk 0:00:12.9]} 34... Bb4 {[%clk 0:00:01.6]}
35. g3 {[%clk 0:00:12.7]} 35... e5 {[%clk 0:00:01.7]} 36. Bb6 {[%clk 0:00:12.5]}
36... e4 {[%clk 0:00:01.4]} 37. a5 {[%clk 0:00:12.5]} 1-0

[Event "*** Titled Tuesday Blitz"]
[Site "Chess.com"]
[Date "2020.12.29"]
[Round "9"]
[White "Sueetin"]
[Black "Grammnik"]
[Result "1/2-1/2"]
[WhiteElo "2486"]
[BlackElo "2337"]
[TimeControl "180+1"]
[EndTime "11:44:42 PST"]
[Termination "Game drawn by repetition"]

1. e4 {[%clk 0:03:00.9]} 1... e6 {[%clk 0:02:58.7]} 2. d4 {[%clk 0:03:00.8]}
2... d5 {[%clk 0:02:58.5]} 3. Nc3 {[%clk 0:03:01.4]} 3... Nf6 {[%clk 0:02:58]}
4. e5 {[%clk 0:03:01.4]} 4... Nfd7 {[%clk 0:02:58.2]} 5. f4 {[%clk 0:03:01.7]}
5... c5 {[%clk 0:02:58.7]} 6. Nf3 {[%clk 0:03:02.3]} 6... Nc6 {[%clk 0:02:59.2]}
7. Be3 {[%clk 0:03:02.8]} 7... a6 {[%clk 0:02:59.1]} 8. Qd2 {[%clk 0:03:01.7]}
8... b5 {[%clk 0:02:59.5]} 9. a3 {[%clk 0:02:52.6]} 9... Rb8 {[%clk 0:02:55.7]}
10. Nd1 {[%clk 0:02:43.9]} 10... b4 {[%clk 0:02:50.2]} 11. axb4 {[%clk 0:02:40]}
11... cxd4 {[%clk 0:02:43.3]} 12. Nxd4 {[%clk 0:02:35.2]} 12... Bxb4 {[%clk
0:02:27]} 13. c3 {[%clk 0:02:35.4]} 13... Nxd4 {[%clk 0:02:25]} 14. Bxd4 {[%clk
0:02:26.6]} 14... Be7 {[%clk 0:02:24.4]} 15. Bxa6 {[%clk 0:02:21.7]} 15... Nc5
{[%clk 0:02:24]} 16. Bxc8 {[%clk 0:02:01.8]} 16... Qxc8 {[%clk 0:02:17]} 17. Ra7
{[%clk 0:01:28]} 17... Rb7 {[%clk 0:01:59.1]} 18. Rxb7 {[%clk 0:01:20.5]} 18...
Qxb7 {[%clk 0:02:00]} 19. b4 {[%clk 0:01:16.7]} 19... Ne4 {[%clk 0:01:55.6]} 20.
Qb2 {[%clk 0:01:09.5]} 20... O-O {[%clk 0:01:30.8]} 21. O-O {[%clk 0:01:07.6]}
21... f6 {[%clk 0:01:22.3]} 22. Nf2 {[%clk 0:01:05]} 22... f5 {[%clk 0:01:22.2]}
23. Nd3 {[%clk 0:00:55.5]} 23... Rc8 {[%clk 0:01:19.4]} 24. b5 {[%clk
0:00:53.7]} 24... Nc5 {[%clk 0:01:08.8]} 25. Nxc5 {[%clk 0:00:52]} 25... Bxc5
{[%clk 0:01:08.7]} 26. b6 {[%clk 0:00:48.9]} 26... Rc6 {[%clk 0:01:03.4]} 27.
Rb1 {[%clk 0:00:47.2]} 27... Rxb6 {[%clk 0:01:02.9]} 28. Qxb6 {[%clk 0:00:42.8]}
28... Bxb6 {[%clk 0:00:59]} 29. Rxb6 {[%clk 0:00:42.4]} 29... Qc8 {[%clk
0:00:58.1]} 30. h3 {[%clk 0:00:36.9]} 30... Kf7 {[%clk 0:00:57.7]} 31. Kh2
{[%clk 0:00:37]} 31... h6 {[%clk 0:00:55.1]} 32. Rd6 {[%clk 0:00:17.9]} 32... g5
{[%clk 0:00:53.6]} 33. fxg5 {[%clk 0:00:08]} 33... hxg5 {[%clk 0:00:53.1]} 34.
Rb6 {[%clk 0:00:08.6]} 34... Kg6 {[%clk 0:00:51.7]} 35. Rd6 {[%clk 0:00:08.4]}
35... f4 {[%clk 0:00:49.7]} 36. Rb6 {[%clk 0:00:08]} 36... Kf5 {[%clk
0:00:49.7]} 37. Rb2 {[%clk 0:00:07.2]} 37... g4 {[%clk 0:00:43.4]} 38. hxg4+
{[%clk 0:00:06.9]} 38... Kxg4 {[%clk 0:00:43.6]} 39. Rf2 {[%clk 0:00:07.4]}
39... Qh8+ {[%clk 0:00:29.7]} 40. Kg1 {[%clk 0:00:07.3]} 40... Qh4 {[%clk
0:00:28.3]} 41. Rf3 {[%clk 0:00:07.3]} 41... Qe1+ {[%clk 0:00:26.7]} 42. Kh2
{[%clk 0:00:07.6]} 42... Qh4+ {[%clk 0:00:26.4]} 43. Kg1 {[%clk 0:00:08]} 43...
Qe1+ {[%clk 0:00:26.1]} 44. Kh2 {[%clk 0:00:08.4]} 44... Qh4+ {[%clk 0:00:25.6]}
45. Kg1 {[%clk 0:00:08.8]} 1/2-1/2

[Event "*** Titled Tuesday Blitz"]
[Site "Chess.com"]
[Date "2020.12.29"]
[Round "9"]
[White "Sergienko_Sergey"]
[Black "vanyakuba"]
[Result "0-1"]
[WhiteElo "2297"]
[BlackElo "2453"]
[TimeControl "180+1"]
[EndTime "11:44:44 PST"]
[Termination "vanyakuba won on time"]

1. e4 {[%clk 0:02:58.9]} 1... d5 {[%clk 0:03:00]} 2. exd5 {[%clk 0:02:58]} 2...
Qxd5 {[%clk 0:02:59.9]} 3. Nc3 {[%clk 0:02:57.9]} 3... Qa5 {[%clk 0:02:59.9]} 4.
d4 {[%clk 0:02:57]} 4... Nf6 {[%clk 0:03:00.2]} 5. Nf3 {[%clk 0:02:56]} 5... Bg4
{[%clk 0:03:00]} 6. h3 {[%clk 0:02:55.9]} 6... Bh5 {[%clk 0:03:00.1]} 7. Bc4
{[%clk 0:02:47.1]} 7... Nc6 {[%clk 0:02:59.2]} 8. g4 {[%clk 0:02:45.3]} 8... Bg6
{[%clk 0:02:58.8]} 9. Bd2 {[%clk 0:02:39]} 9... O-O-O {[%clk 0:02:57.2]} 10. Nd5
{[%clk 0:02:25.6]} 10... Qa4 {[%clk 0:02:57]} 11. b3 {[%clk 0:02:10.1]} 11...
Qa3 {[%clk 0:02:56.1]} 12. Nxf6 {[%clk 0:01:41.1]} 12... gxf6 {[%clk 0:02:53.5]}
13. c3 {[%clk 0:01:21.8]} 13... e5 {[%clk 0:02:47.3]} 14. Qc1 {[%clk 0:01:13.8]}
14... Be4 {[%clk 0:02:21.4]} 15. Qxa3 {[%clk 0:01:04.5]} 15... Bxa3 {[%clk
0:02:20.8]} 16. Ke2 {[%clk 0:01:04.5]} 16... exd4 {[%clk 0:02:19.6]} 17. Bxf7
{[%clk 0:00:56]} 17... d3+ {[%clk 0:02:03.6]} 18. Ke3 {[%clk 0:00:51.2]} 18...
Bd5 {[%clk 0:01:16.7]} 19. Bxd5 {[%clk 0:00:48.8]} 19... Rxd5 {[%clk 0:01:17.6]}
20. Nd4 {[%clk 0:00:43.9]} 20... Bc5 {[%clk 0:01:06.2]} 21. Rad1 {[%clk
0:00:20.3]} 21... Re8+ {[%clk 0:00:59]} 22. Kf3 {[%clk 0:00:18.8]} 22... Bxd4
{[%clk 0:00:58.8]} 23. cxd4 {[%clk 0:00:19]} 23... Nxd4+ {[%clk 0:00:59.7]} 24.
Kg2 {[%clk 0:00:19.1]} 24... Re2 {[%clk 0:00:50.3]} 25. Bc3 {[%clk 0:00:16.6]}
25... Ne6 {[%clk 0:00:46.4]} 26. Bxf6 {[%clk 0:00:11.6]} 26... Rxa2 {[%clk
0:00:46.4]} 27. Rhe1 {[%clk 0:00:09.7]} 27... Kd7 {[%clk 0:00:45.9]} 28. Re3
{[%clk 0:00:08.4]} 28... d2 {[%clk 0:00:43.5]} 29. Kf3 {[%clk 0:00:05.9]} 29...
c5 {[%clk 0:00:20.4]} 30. Bc3 {[%clk 0:00:05.3]} 30... b5 {[%clk 0:00:13.1]} 31.
Ke4 {[%clk 0:00:03.8]} 31... Rd6 {[%clk 0:00:12.1]} 32. Be5 {[%clk 0:00:02.5]}
32... Rc6 {[%clk 0:00:12.5]} 33. Re2 {[%clk 0:00:01.7]} 33... c4 {[%clk
0:00:09.9]} 34. Rexd2+ {[%clk 0:00:01.7]} 34... Rxd2 {[%clk 0:00:10.6]} 35.
Rxd2+ {[%clk 0:00:01.9]} 35... Ke7 {[%clk 0:00:10.6]} 36. bxc4 {[%clk
0:00:01.3]} 36... Rxc4+ {[%clk 0:00:10.2]} 0-1

[Event "*** Titled Tuesday Blitz"]
[Site "Chess.com"]
[Date "2020.12.29"]
[Round "9"]
[White "annamaja"]
[Black "Rytenko_V"]
[Result "0-1"]
[WhiteElo "2284"]
[BlackElo "2421"]
[TimeControl "180+1"]
[EndTime "11:44:44 PST"]
[Termination "Rytenko_V won on time"]

1. e4 {[%clk 0:03:00.9]} 1... e6 {[%clk 0:02:56]} 2. d4 {[%clk 0:03:00.7]} 2...
d5 {[%clk 0:02:56.9]} 3. exd5 {[%clk 0:03:01.2]} 3... exd5 {[%clk 0:02:57.8]} 4.
c4 {[%clk 0:03:01.9]} 4... Nf6 {[%clk 0:02:58.6]} 5. Nc3 {[%clk 0:03:02.4]} 5...
c6 {[%clk 0:02:59]} 6. Bd3 {[%clk 0:03:02.7]} 6... Bd6 {[%clk 0:02:58.9]} 7.
cxd5 {[%clk 0:03:01.4]} 7... Nxd5 {[%clk 0:02:58]} 8. Nxd5 {[%clk 0:03:01.5]}
8... cxd5 {[%clk 0:02:58.9]} 9. Ne2 {[%clk 0:02:56.6]} 9... O-O {[%clk
0:02:57.2]} 10. O-O {[%clk 0:02:57]} 10... h6 {[%clk 0:02:57.1]} 11. Bf4 {[%clk
0:02:55.9]} 11... Bg4 {[%clk 0:02:52.7]} 12. f3 {[%clk 0:02:31]} 12... Be6
{[%clk 0:02:44.9]} 13. Bc2 {[%clk 0:02:19.2]} 13... Bxf4 {[%clk 0:02:16.3]} 14.
Nxf4 {[%clk 0:02:19.2]} 14... Qf6 {[%clk 0:01:50.3]} 15. Qd3 {[%clk 0:02:01.2]}
15... g6 {[%clk 0:01:50.4]} 16. Nxe6 {[%clk 0:01:55.4]} 16... Qxe6 {[%clk
0:01:50]} 17. Rfe1 {[%clk 0:01:55.1]} 17... Qf6 {[%clk 0:01:48.6]} 18. Re5
{[%clk 0:01:45.2]} 18... Nc6 {[%clk 0:01:46.2]} 19. Ree1 {[%clk 0:01:05.4]}
19... Nb4 {[%clk 0:01:28.2]} 20. Qd2 {[%clk 0:00:55.9]} 20... Nxc2 {[%clk
0:01:28]} 21. Qxc2 {[%clk 0:00:56.8]} 21... Qxd4+ {[%clk 0:01:28]} 22. Kh1
{[%clk 0:00:57.2]} 22... Rac8 {[%clk 0:01:24.9]} 23. Qb3 {[%clk 0:00:55.9]}
23... Qf2 {[%clk 0:01:14.2]} 24. Qxd5 {[%clk 0:00:47.4]} 24... Rc2 {[%clk
0:01:09]} 25. Rg1 {[%clk 0:00:43.8]} 25... Rxb2 {[%clk 0:01:09.1]} 26. a4 {[%clk
0:00:37.8]} 26... Rc8 {[%clk 0:01:02.2]} 27. Raf1 {[%clk 0:00:35.2]} 27... Qd2
{[%clk 0:00:50.1]} 28. Qe5 {[%clk 0:00:25.3]} 28... a6 {[%clk 0:00:26.6]} 29.
Rd1 {[%clk 0:00:21.3]} 29... Qe2 {[%clk 0:00:21.6]} 30. Qd4 {[%clk 0:00:16.9]}
30... b5 {[%clk 0:00:18.2]} 31. a5 {[%clk 0:00:09.9]} 31... b4 {[%clk
0:00:17.2]} 32. Qf6 {[%clk 0:00:03]} 32... Re8 {[%clk 0:00:12.9]} 33. Rd6 {[%clk
0:00:02]} 33... b3 {[%clk 0:00:06]} 34. Rxa6 {[%clk 0:00:01.6]} 34... Rc2 {[%clk
0:00:06.5]} 35. Rb6 {[%clk 0:00:01.8]} 35... b2 {[%clk 0:00:06.4]} 0-1

[Event "*** Titled Tuesday Blitz"]
[Site "Chess.com"]
[Date "2020.12.29"]
[Round "9"]
[White "Tagliata"]
[Black "DishonorOnYourCow"]
[Result "1-0"]
[WhiteElo "2311"]
[BlackElo "2434"]
[TimeControl "180+1"]
[EndTime "11:44:45 PST"]
[Termination "Tagliata won on time"]

1. e4 {[%clk 0:03:00.9]} 1... e5 {[%clk 0:02:58.5]} 2. d4 {[%clk 0:03:00]} 2...
exd4 {[%clk 0:02:58.3]} 3. c3 {[%clk 0:02:59.8]} 3... dxc3 {[%clk 0:02:55.6]} 4.
Nxc3 {[%clk 0:02:59.1]} 4... Nc6 {[%clk 0:02:50.6]} 5. Nf3 {[%clk 0:02:57.8]}
5... Bc5 {[%clk 0:02:49.9]} 6. Bc4 {[%clk 0:02:56.9]} 6... d6 {[%clk 0:02:48.9]}
7. O-O {[%clk 0:02:40.6]} 7... Nf6 {[%clk 0:02:48.2]} 8. Bg5 {[%clk 0:02:38]}
8... h6 {[%clk 0:02:47.8]} 9. Bh4 {[%clk 0:02:35.3]} 9... g5 {[%clk 0:02:47.6]}
10. Bg3 {[%clk 0:02:34.6]} 10... Bg4 {[%clk 0:02:47]} 11. Qb3 {[%clk 0:02:22.8]}
11... Qd7 {[%clk 0:02:35.2]} 12. e5 {[%clk 0:01:42]} 12... Na5 {[%clk 0:02:29]}
13. Qb5 {[%clk 0:01:32.5]} 13... Qxb5 {[%clk 0:02:02.1]} 14. Bxb5+ {[%clk
0:01:30.8]} 14... c6 {[%clk 0:01:59.4]} 15. exf6 {[%clk 0:01:17]} 15... cxb5
{[%clk 0:01:58]} 16. Nxb5 {[%clk 0:01:16.7]} 16... Bxf3 {[%clk 0:01:55.3]} 17.
gxf3 {[%clk 0:01:15.3]} 17... O-O-O {[%clk 0:01:49.3]} 18. Rac1 {[%clk
0:01:07.8]} 18... Nc6 {[%clk 0:01:49.1]} 19. a3 {[%clk 0:00:58.7]} 19... a6
{[%clk 0:01:45.5]} 20. b4 {[%clk 0:00:52.4]} 20... axb5 {[%clk 0:01:36.3]} 21.
bxc5 {[%clk 0:00:52]} 21... dxc5 {[%clk 0:01:36.9]} 22. Rxc5 {[%clk 0:00:51]}
22... Rd3 {[%clk 0:01:31.2]} 23. Rxb5 {[%clk 0:00:47.2]} 23... Rxa3 {[%clk
0:00:52.8]} 24. Rfb1 {[%clk 0:00:39.3]} 24... Ra7 {[%clk 0:00:44.5]} 25. Rc1
{[%clk 0:00:37.3]} 25... Kd7 {[%clk 0:00:42]} 26. Rd5+ {[%clk 0:00:32]} 26...
Ke6 {[%clk 0:00:41.7]} 27. Rd6+ {[%clk 0:00:31.6]} 27... Kf5 {[%clk 0:00:41.3]}
28. Rc5+ {[%clk 0:00:29.3]} 28... Kg6 {[%clk 0:00:41.4]} 29. Rd7 {[%clk
0:00:25.3]} 29... Kxf6 {[%clk 0:00:34.5]} 30. Rxc6+ {[%clk 0:00:22.1]} 30...
bxc6 {[%clk 0:00:30.5]} 31. Rxa7 {[%clk 0:00:21.5]} 31... Rc8 {[%clk 0:00:29.6]}
32. Rc7 {[%clk 0:00:20.8]} 32... Rxc7 {[%clk 0:00:15.1]} 33. Bxc7 {[%clk
0:00:20.4]} 33... Ke6 {[%clk 0:00:16]} 34. Kg2 {[%clk 0:00:19.7]} 34... c5
{[%clk 0:00:15.3]} 35. Kg1 {[%clk 0:00:18.9]} 35... Kd5 {[%clk 0:00:15.2]} 36.
Kf1 {[%clk 0:00:19.4]} 36... Kc4 {[%clk 0:00:15]} 37. Ke2 {[%clk 0:00:20]} 37...
Kb3 {[%clk 0:00:15.3]} 38. Kd2 {[%clk 0:00:20]} 38... c4 {[%clk 0:00:15.6]} 39.
Be5 {[%clk 0:00:20.2]} 39... f5 {[%clk 0:00:15.6]} 40. Bd4 {[%clk 0:00:19.2]}
40... Kb4 {[%clk 0:00:11.7]} 41. Bf6 {[%clk 0:00:18.4]} 41... Kb3 {[%clk
0:00:09]} 42. Be5 {[%clk 0:00:16.9]} 42... Kb4 {[%clk 0:00:02.4]} 43. Kc2 {[%clk
0:00:16.9]} 1-0